bitfinex-derivatives/quotes_SOLF0:USTF0_20241005
["timestamp","ask_amount","ask_price","bid_price","bid_amount"]
[1728119960839,6.1128,144.61,144.54,4.76]
[1728119961050,10.61,144.57,144.54,4.76]
[1728119961251,10.61,144.58,144.55,1.17196462]
[1728119961946,10.61,144.56,144.55,3.4587]
[1728119962146,10.61,144.56,144.55,4.63066508]
[1728119962649,10.61,144.56,144.55,3.4587]
[1728119962852,10.61,144.56,144.55,4.63066489]
[1728119964752,10.61,144.56,144.55,3.4587]
[1728119966552,10.61,144.56,144.54,4.76]
[1728119967354,10.61,144.56,144.54,8.2188]
[1728119969552,10.61,144.55,144.54,4.76]
[1728119969752,3.4583,144.57,144.54,4.76]
[1728119969953,10.61,144.55,144.54,4.76]
[1728119970361,6.1128,144.61,144.54,4.76]
[1728119970565,10.61,144.56,144.54,8.219]
[1728119971259,10.61,144.56,144.54,4.76]
[1728119971955,10.61,144.56,144.53,0.12502]
[1728119971956,10.61,144.55,144.53,0.12502]
[1728119972157,10.61,144.54,144.53,0.12502]
[1728119972562,14.069,144.54,144.53,0.12502]
[1728119973360,17.50420951,144.54,144.53,0.12502]
[1728119973564,17.50420951,144.54,144.49,3.4601]
[1728119973565,3.4595,144.53,144.49,3.4601]
[1728119973757,10.61,144.5,144.49,3.4601]
[1728119973963,10.61,144.5,144.48,8.2604]
[1728119974366,10.61,144.5,144.48,4.8]
[1728119974569,10.61,144.5,144.48,3.4605]
[1728119974763,10.61,144.5,144.48,4.8]
[1728119975064,10.61,144.52,144.48,4.8]
[1728119975272,10.61,144.52,144.49,3.4602]
[1728119975571,10.61,144.52,144.48,4.8]
[1728119975771,10.61,144.51,144.48,8.2604]
[1728119977067,10.61,144.51,144.47,8.38562]
[1728119977969,10.61,144.5,144.47,4.92502]
[1728119978175,10.61,144.48,144.47,0.12502]
[1728119978480,10.61,144.5,144.47,0.12502]
[1728119978875,10.61,144.5,144.47,3.58562]
[1728119979077,10.61,144.5,144.47,0.12502]
[1728119979268,14.0701,144.5,144.47,0.12502]
[1728119979473,10.61,144.5,144.47,0.12502]
[1728119980781,10.61,144.49,144.47,0.12502]
[1728119982672,10.61,144.48,144.47,0.12502]
[1728119989585,10.61,144.49,144.47,0.12502]
[1728119990187,10.61,144.48,144.47,0.12502]
[1728119991187,8.29093801,144.52,144.47,0.12502]
[1728119991388,10.61,144.49,144.47,0.12502]
[1728119994690,10.61,144.48,144.47,0.12502]
[1728120006293,11.9472,144.48,144.47,0.12502]
[1728120006897,15.4077,144.48,144.47,0.12502]
[1728120008196,11.9472,144.48,144.41,69.88631776]
[1728120008400,10.61,144.43,144.41,74.74631776]
[1728120009205,10.61,144.44,144.41,74.74631776]
[1728120009410,10.61,144.44,144.41,73.36161776]
[1728120009802,1.3372,144.48,144.43,3.4614]
[1728120009803,10.61,144.46,144.43,3.4614]
[1728120015704,5.90763801,144.52,144.41,83.97161776]
[1728120015705,3.4598,144.51,144.47,3.4605]
[1728120016004,10.61,144.49,144.47,3.4605]
[1728120017707,3.4598,144.51,144.47,3.4605]
[1728120017912,10.61,144.49,144.47,3.4605]
[1728120018214,10.61,144.5,144.47,4.86]
[1728120018805,10.61,144.5,144.49,3.4602]
[1728120019907,10.61,144.5,144.47,4.86]
[1728120020106,10.61,144.5,144.48,3.4604]
[1728120020409,3.4596,144.52,144.48,3.4604]
[1728120020410,10.61,144.49,144.48,3.4604]
[1728120020603,10.61,144.49,144.47,4.86]
[1728120020808,10.61,144.49,144.47,8.3206]
[1728120021710,10.61,144.49,144.48,3.4605]
[1728120024118,10.61,144.49,144.47,8.3206]
[1728120032528,81.22888591,144.53,144.47,15.47]
[1728120032826,91.83888591,144.53,144.48,10.61]
[1728120033024,91.83888591,144.53,144.52,3.4595]
[1728120033228,0.12502,144.53,144.52,3.4595]
[1728120053334,0.12502,144.53,144.52,14.0695]
[1728120056442,0.12502,144.53,144.52,3.4595]
[1728120056637,0.12502,144.53,144.52,14.0695]
[1728120077058,0.12502,144.53,144.52,18.8495]
[1728120083768,0.12502,144.59,144.52,16.56189538]
[1728120083966,0.12502,144.59,144.58,14.0681]
[1728120084161,0.12502,144.59,144.58,18.8481]
[1728120087558,1.3073,144.64,144.62,3.4571]
[1728120087758,1.3073,144.64,144.62,14.0671]
[1728120088168,1.3073,144.64,144.62,10.61]
[1728120089863,0.12502,144.65,144.63,10.61]
[1728120090064,0.12502,144.65,144.61,4.76]
[1728120090065,0.12502,144.65,144.64,10.61]
[1728120090468,0.12502,144.65,144.64,15.37]
[1728120091070,0.12502,144.65,144.64,18.8266]
[1728120091665,0.12502,144.65,144.64,4.76]
[1728120091867,14.19142,144.65,144.62,4.76]
[1728120092061,14.19142,144.65,144.6,14.0674]
[1728120092062,1.3861,144.64,144.6,14.0674]
[1728120092366,4.8428,144.64,144.61,4.76]
[1728120092965,1.3861,144.64,144.61,4.76]
[1728120093971,1.3861,144.64,144.61,3.4573]
[1728120093972,11.9961,144.64,144.61,3.4573]
[1728120094270,1.3861,144.64,144.61,3.4573]
[1728120095767,1.3861,144.64,144.63,3.4569]
[1728120103771,1.3861,144.64,144.62,14.067]
[1728120117586,0.12502,144.65,144.63,14.0669]
[1728120118582,0.12502,144.65,144.63,10.61]
[1728120118785,0.12502,144.65,144.64,14.0666]
[1728120121191,0.12502,144.65,144.62,3.457]
[1728120121388,0.12502,144.65,144.64,4.76]
[1728120124077,0.12502,144.65,144.63,4.76]
[1728120127290,0.12502,144.65,144.63,8.2169]
[1728120127479,0.12502,144.65,144.61,10.61]
[1728120127682,14.0669,144.63,144.59,4.76]
[1728120127979,10.61,144.63,144.58,15.37]
[1728120128186,3.4573,144.62,144.58,15.37]
[1728120128492,3.4573,144.62,144.59,3.4578]
[1728120132294,3.4576,144.6,144.58,4.76]
[1728120132492,10.61,144.62,144.57,3.4582]
[1728120132693,10.61,144.62,144.57,8.2182]
[1728120133180,10.61,144.62,144.57,3.4582]
[1728120133584,3.4575,144.61,144.57,3.4582]
[1728120134284,4.76,144.64,144.56,4.76]
[1728120134481,4.76,144.64,144.6,10.61]
[1728120134681,13.48492,144.65,144.6,10.61]
[1728120134892,12.13252,144.65,144.6,10.61]
[1728120135889,1.52252,144.65,144.61,10.61]
[1728120136087,0.12502,144.65,144.63,10.61]
[1728120136391,0.12502,144.65,144.64,14.0666]
[1728120139098,0.12502,144.65,144.64,3.4566]
[1728120144496,18.1259,144.7,144.64,10.61]
[1728120144702,18.1259,144.7,144.66,14.066]
[1728120145906,13.3659,144.7,144.66,14.066]
[1728120146195,3.4555,144.69,144.66,14.066]
[1728120148197,10.61,144.67,144.6,1.3001]
[1728120148499,1.3874,144.7,144.61,4.76]
[1728120148500,10.61,144.64,144.61,4.76]
[1728120148893,10.61,144.64,144.62,3.457]
[1728120150405,10.61,144.64,144.61,8.2173]
[1728120150602,10.61,144.64,144.61,4.76]
[1728120151008,14.0668,144.64,144.61,4.76]
[1728120154409,3.4568,144.64,144.61,4.76]
[1728120154800,3.4568,144.64,144.61,8.2173]
[1728120158808,3.52207558,144.67,144.61,4.76]
[1728120159004,10.61,144.67,144.62,10.61]
[1728120159808,14.0661,144.67,144.64,3.4566]
[1728120160111,10.61,144.67,144.62,10.61]
[1728120160609,3.4562,144.66,144.63,3.4567]
[1728120161597,10.61,144.67,144.62,10.61]
[1728120161802,10.61,144.67,144.64,3.4564]
[1728120162205,10.61,144.67,144.65,3.4563]
[1728120162704,91.73802039,144.71,144.66,10.61]
[1728120162909,84.58302039,144.71,144.67,14.0657]
[1728120163110,95.19302039,144.71,144.67,14.0657]
[1728120165299,91.73802039,144.71,144.68,3.4555]
[1728120166398,0.12502,144.71,144.68,14.0655]
[1728120167608,0.12502,144.71,144.69,14.0654]
[1728120168099,0.12502,144.71,144.69,10.61]
[1728120169310,0.12502,144.71,144.62,1.3064]
[1728120169614,3.4561,144.67,144.63,14.0668]
[1728120177726,3.4561,144.67,144.64,10.61]
[1728120178031,10.61,144.69,144.65,10.61]
[1728120178528,10.61,144.69,144.65,14.0662]
[1728120178529,14.0655,144.69,144.65,14.0662]
[1728120180236,3.4555,144.69,144.65,14.0662]
[1728120186430,14.0655,144.69,144.65,14.0662]
[1728120186826,14.0655,144.69,144.65,3.4562]
[1728120187027,10.61,144.69,144.65,3.4562]
[1728120187236,3.4557,144.68,144.65,3.4562]
[1728120189740,3.4555,144.69,144.65,3.4562]
[1728120189936,3.4555,144.69,144.64,15.43]
[1728120190241,3.4555,144.69,144.66,3.4561]
[1728120192244,0.12502,144.71,144.67,10.61]
[1728120193243,3.58002,144.71,144.68,3.4555]
[1728120194450,0.12502,144.71,144.7,3.4552]
[1728120194650,0.12502,144.71,144.68,10.61]
[1728120195044,0.12502,144.71,144.69,3.4553]
[1728120197355,0.12502,144.71,144.68,14.0655]
[1728120197554,0.12502,144.71,144.68,10.61]
[1728120197746,0.12502,144.71,144.69,3.4553]
[1728120199455,0.12502,144.71,144.68,10.61]
[1728120199653,0.12502,144.71,144.7,3.4552]
[1728120203261,0.12502,144.77,144.74,3.4541]
[1728120203572,14.19924047,144.77,144.74,3.4541]
[1728120203855,14.18852,144.77,144.74,3.4541]
[1728120204049,10.73502,144.77,144.74,3.4541]
[1728120204257,0.12502,144.77,144.73,15.43]
[1728120204755,0.12502,144.77,144.74,10.61]
[1728120205756,0.12502,144.77,144.75,3.4539]
[1728120206650,0.12502,144.77,144.76,3.4538]
[1728120211054,10.73502,144.77,144.73,4.82]
[1728120211259,10.73502,144.77,144.73,15.43]
[1728120212165,10.73502,144.77,144.75,3.4538]
[1728120216162,10.73502,144.77,144.73,15.43]
[1728120216365,10.73502,144.77,144.74,3.4542]
[1728120218466,0.12502,144.77,144.74,3.4542]
[1728120221470,0.12502,144.77,144.76,3.4538]
[1728120221672,82.28409847,144.82,144.76,15.41]
[1728120221876,10.61,144.81,144.76,15.41]
[1728120222477,14.0627,144.81,144.77,3.4535]
[1728120222671,10.61,144.81,144.77,10.61]
[1728120223179,0.12502,144.83,144.78,10.61]
[1728120223367,10.73502,144.83,144.79,4.8]
[1728120224074,0.12502,144.83,144.79,4.8]
[1728120224481,10.73502,144.83,144.79,4.8]
[1728120224677,10.61,144.81,144.79,4.8]
[1728120225081,0.12502,144.83,144.79,4.8]
[1728120225273,10.61,144.8,144.79,4.8]
[1728120226582,3.4524,144.82,144.79,4.8]
[1728120226782,10.73502,144.83,144.79,8.2529]
[1728120227081,10.61,144.8,144.79,4.8]
[1728120227284,14.0628,144.8,144.79,4.8]
[1728120228084,14.0628,144.8,144.75,10.61]
[1728120228085,3.4531,144.79,144.76,4.8]
[1728120228292,14.0631,144.79,144.76,4.8]
[1728120228992,10.61,144.79,144.76,4.8]
[1728120229197,14.0629,144.8,144.76,15.41]
[1728120230085,14.0629,144.8,144.77,3.4535]
[1728120231988,10.61,144.8,144.77,3.4535]
[1728120234494,10.61,144.8,144.76,15.41]
[1728120234793,14.0629,144.8,144.76,18.8637]
[1728120236496,3.4529,144.8,144.77,10.61]
[1728120237999,3.4534,144.78,144.74,1.3207]
[1728120238197,3.4534,144.78,144.75,4.82]
[1728120238500,10.61,144.79,144.75,4.82]
[1728120238798,3.4534,144.78,144.75,4.82]
[1728120240591,10.61,144.78,144.74,1.3207]
[1728120240789,14.0639,144.76,144.73,8.2744]
[1728120241394,10.61,144.76,144.73,8.2744]
[1728120241792,14.0639,144.76,144.73,4.82]
[1728120242094,10.61,144.78,144.73,15.43]
[1728120242398,10.61,144.78,144.74,3.4542]
[1728120243085,10.61,144.78,144.73,18.8844]
[1728120243494,6.1519,144.82,144.73,15.43]
[1728120243796,14.0634,144.78,144.74,3.4542]
[1728120244189,3.4538,144.76,144.73,15.43]
[1728120244890,10.61,144.77,144.72,3.4546]
[1728120245108,14.0642,144.75,144.73,4.82]
[1728120246391,3.4547,144.72,144.71,0.12502]
[1728120246899,14.0647,144.72,144.71,0.12502]
[1728120247099,1.3603,144.75,144.71,0.12502]
[1728120247297,14.0645,144.73,144.71,0.12502]
[1728120248200,14.0647,144.72,144.71,0.12502]
[1728120248997,14.0646,144.73,144.71,0.12502]
[1728120253901,3.4547,144.72,144.71,0.12502]
[1728120255200,14.0647,144.72,144.71,0.12502]
[1728120257505,1.3641,144.77,144.71,10.73502]
[1728120257702,11.9741,144.77,144.71,10.73502]
[1728120257907,11.9741,144.77,144.72,3.4546]
[1728120258204,3.4538,144.76,144.71,10.73502]
[1728120258402,10.61,144.76,144.71,10.73502]
[1728120258605,10.61,144.76,144.71,0.12502]
[1728120260010,3.4541,144.75,144.72,3.4546]
[1728120260306,10.61,144.74,144.72,3.4546]
[1728120260507,10.61,144.73,144.71,0.12502]
[1728120262010,14.0645,144.73,144.71,0.12502]
[1728120263211,3.4547,144.72,144.71,0.12502]
[1728120263410,10.61,144.73,144.71,0.12502]
[1728120264007,14.0645,144.73,144.71,0.12502]
[1728120265705,10.61,144.73,144.71,0.12502]
[1728120266011,3.4547,144.72,144.71,0.12502]
[1728120266807,14.0647,144.72,144.71,0.12502]
[1728120267719,10.61,144.72,144.66,4.84]
[1728120267906,10.61,144.69,144.66,4.84]
[1728120268106,10.61,144.69,144.67,3.4559]
[1728120268615,10.61,144.69,144.66,4.84]
[1728120268811,10.61,144.69,144.66,8.296]
[1728120269015,10.61,144.69,144.66,18.906]
[1728120269412,10.61,144.69,144.66,4.84]
[1728120269612,14.0655,144.69,144.66,4.84]
[1728120270108,14.0655,144.69,144.65,8.42132]
[1728120270314,14.0655,144.69,144.65,19.03132]
[1728120270817,10.61,144.68,144.65,4.96502]
[1728120271612,14.0657,144.68,144.65,4.96502]
[1728120272313,14.0657,144.68,144.65,8.42142]
[1728120273312,10.61,144.68,144.65,8.42142]
[1728120273515,10.61,144.69,144.66,3.4562]
[1728120274426,14.0655,144.69,144.66,3.4562]
[1728120279516,10.61,144.69,144.65,15.57502]
[1728120280323,10.61,144.7,144.65,15.57502]
[1728120281223,10.61,144.7,144.67,3.4558]
[1728120281422,3.4552,144.7,144.67,3.4558]
[1728120281626,10.61,144.69,144.67,3.4558]
[1728120281822,10.61,144.68,144.65,4.96502]
[1728120282927,10.61,144.68,144.66,3.4561]
[1728120283128,10.61,144.68,144.65,4.96502]
[1728120283827,10.61,144.68,144.65,8.42132]
[1728120286029,10.61,144.66,144.65,0.12502]
[1728120290224,10.61,144.68,144.65,0.12502]
[1728120290429,10.61,144.68,144.66,3.456]
[1728120292836,3.4556,144.69,144.66,3.456]
[1728120293038,10.61,144.67,144.66,3.456]
[1728120294332,10.61,144.68,144.66,3.4559]
[1728120294536,10.61,144.68,144.65,0.12502]
[1728120294741,10.61,144.67,144.65,0.12502]
[1728120294944,10.61,144.67,144.65,3.58122]
[1728120295127,6.2473,144.71,144.65,0.12502]
[1728120295327,10.61,144.68,144.65,0.12502]
[1728120297039,10.61,144.68,144.66,3.456]
[1728120300538,10.61,144.68,144.65,0.12502]
[1728120300738,10.61,144.67,144.65,3.58142]
[1728120306951,10.61,144.68,144.65,3.58142]
[1728120307350,10.61,144.68,144.65,0.12502]
[1728120307650,10.61,144.68,144.66,3.4561]
[1728120312255,10.61,144.68,144.65,0.12502]
[1728120312256,10.61,144.68,144.65,3.58132]
[1728120313653,10.61,144.68,144.66,3.4561]
[1728120315550,10.61,144.68,144.67,3.4559]
[1728120318649,10.61,144.69,144.68,3.4555]
[1728120318856,1.3873,144.71,144.67,10.61]
[1728120319155,11.9973,144.71,144.67,15.51]
[1728120319757,11.9973,144.71,144.67,10.61]
[1728120319953,10.61,144.68,144.59,0.12502]
[1728120320256,10.61,144.62,144.6,1.16519129]
[1728120320654,10.61,144.62,144.59,0.12502]
[1728120320957,8.42282931,144.67,144.59,5.02502]
[1728120320958,11.87872931,144.67,144.59,5.02502]
[1728120321159,10.61,144.63,144.59,5.02502]
[1728120321750,10.61,144.63,144.59,15.63502]
[1728120322157,10.61,144.63,144.62,3.4571]
[1728120322948,8.42282931,144.67,144.59,15.63502]
[1728120323150,2.7111,144.7,144.6,10.61]
[1728120323151,10.61,144.66,144.6,10.61]
[1728120323460,10.61,144.66,144.61,10.61]
[1728120323854,10.61,144.67,144.62,4.9]
[1728120324159,10.61,144.67,144.66,3.456]
[1728120326161,10.61,144.68,144.63,10.61]
[1728120326461,3.58002,144.71,144.63,10.61]
[1728120326462,0.12502,144.71,144.66,10.61]
[1728120326665,0.12502,144.71,144.67,15.49]
[1728120327056,0.12502,144.71,144.7,3.4552]
[1728120333559,0.12502,144.71,144.67,15.49]
[1728120333760,10.73502,144.71,144.69,3.4553]
[1728120336669,10.73502,144.71,144.7,3.4552]
[1728120337057,0.12502,144.71,144.7,3.4552]
[1728120353278,0.12502,144.71,144.7,14.0652]
[1728120359392,0.12502,144.77,144.76,3.4538]
[1728120359597,0.12502,144.77,144.76,18.9238]
[1728120360596,11.9193,144.82,144.76,15.47]
[1728120360796,11.9193,144.82,144.79,3.4528]
[1728120361103,10.61,144.81,144.79,4.86]
[1728120361312,10.61,144.81,144.78,3.4533]
[1728120361498,10.61,144.79,144.77,4.86]
[1728120363895,10.61,144.79,144.77,8.3135]
[1728120368098,10.61,144.8,144.78,3.4532]
[1728120368503,10.61,144.8,144.77,4.86]
[1728120368807,10.61,144.8,144.79,3.4531]
[1728120369603,10.61,144.8,144.77,4.86]
[1728120369902,10.61,144.8,144.78,3.4532]
[1728120370410,10.61,144.8,144.79,3.4531]
[1728120371612,10.61,144.8,144.77,3.4535]
[1728120371908,10.61,144.8,144.78,4.86]
[1728120372103,10.61,144.8,144.78,8.3131]
[1728120372405,1.3093,144.82,144.74,10.61]
[1728120372706,10.61,144.78,144.76,3.4536]
[1728120374301,10.61,144.78,144.75,4.86]
[1728120375708,10.61,144.78,144.76,3.4536]
[1728120375913,3.4528,144.8,144.75,4.86]
[1728120376108,10.61,144.79,144.75,4.86]
[1728120376405,10.61,144.79,144.75,15.47]
[1728120376706,10.61,144.79,144.77,3.4535]
[1728120377699,10.61,144.81,144.78,3.4532]
[1728120379112,10.61,144.81,144.77,3.4533]
[1728120379310,10.61,144.81,144.76,10.61]
[1728120379515,10.61,144.81,144.78,4.86]
[1728120380306,10.61,144.81,144.79,3.4529]
[1728120380511,0.12502,144.83,144.78,4.86]
[1728120380711,10.61,144.82,144.79,3.4529]
[1728120381016,10.61,144.8,144.78,4.86]
[1728120382208,14.0628,144.8,144.78,4.86]
[1728120382410,10.61,144.79,144.77,3.4535]
[1728120386712,14.0628,144.8,144.77,3.4535]
[1728120387614,10.61,144.8,144.77,3.4535]
[1728120388714,10.61,144.8,144.76,4.86]
[1728120388916,10.61,144.8,144.78,3.4533]
[1728120390718,3.4533,144.78,144.76,4.86]
[1728120390915,10.61,144.79,144.76,4.86]
[1728120391919,14.0631,144.79,144.76,8.3136]
[1728120393417,10.61,144.79,144.76,4.86]
[1728120393614,14.0632,144.79,144.76,8.3137]
[1728120396227,14.0632,144.79,144.76,4.86]
[1728120397625,10.61,144.78,144.72,1.3013]
[1728120397826,10.61,144.73,144.71,0.12502]
[1728120398329,10.61,144.72,144.71,0.12502]
[1728120398525,10.61,144.73,144.71,0.12502]
[1728120398725,10.61,144.73,144.71,3.57982]
[1728120398927,10.61,144.75,144.71,10.73502]
[1728120399428,10.61,144.75,144.72,3.4545]
[1728120400626,4.844,144.77,144.72,3.4545]
[1728120400823,10.61,144.76,144.71,15.67502]
[1728120401423,10.61,144.76,144.72,10.61]
[1728120401621,10.61,144.76,144.73,3.4544]
[1728120402234,10.61,144.76,144.74,3.4542]
[1728120407736,3.4539,144.76,144.71,5.06502]
[1728120408031,10.61,144.75,144.71,5.06502]
[1728120408334,14.0641,144.75,144.72,3.4545]
[1728120408733,10.61,144.75,144.72,3.4545]
[1728120410934,3.4539,144.76,144.71,5.06502]
[1728120411134,14.0639,144.76,144.73,3.4544]
[1728120411443,10.61,144.76,144.73,3.4544]
[1728120413530,10.61,144.76,144.71,5.06502]
[1728120413737,10.61,144.76,144.74,3.4542]
[1728120414640,10.61,144.77,144.75,3.454]
[1728120414840,3.4532,144.79,144.74,10.61]
[1728120415035,14.0632,144.79,144.76,3.4536]
[1728120420344,10.61,144.8,144.75,10.61]
[1728120420549,10.61,144.8,144.77,3.4533]
[1728120420749,10.61,144.8,144.75,10.61]
[1728120421242,14.063,144.8,144.76,3.4535]
[1728120421443,14.063,144.8,144.75,10.61]
[1728120423154,14.063,144.8,144.77,3.4535]
[1728120423755,14.0628,144.8,144.77,3.4535]
[1728120425651,1.2992,144.81,144.76,3.4536]
[1728120425652,4.7519,144.81,144.76,3.4536]
[1728120425959,10.61,144.8,144.75,10.61]
[1728120426556,4.7519,144.81,144.75,10.61]
[1728120426755,10.61,144.8,144.75,10.61]
[1728120427054,10.61,144.8,144.76,3.4537]
[1728120427255,10.61,144.8,144.75,10.61]
[1728120427763,10.61,144.8,144.77,3.4534]
[1728120428658,10.61,144.8,144.75,10.61]
[1728120428859,10.61,144.8,144.78,3.4533]
[1728120429964,11.9092,144.81,144.77,3.4534]
[1728120430155,11.9092,144.81,144.76,10.61]
[1728120431263,15.3618,144.81,144.78,3.4531]
[1728120440667,10.61,144.79,144.75,10.61]
[1728120440869,10.61,144.78,144.76,3.4536]
[1728120441368,10.61,144.8,144.75,10.61]
[1728120441560,10.61,144.8,144.77,3.4533]
[1728120442664,14.0628,144.8,144.77,3.4533]
[1728120442866,10.61,144.8,144.77,3.4533]
[1728120444676,14.063,144.8,144.76,3.4536]
[1728120445679,3.4531,144.79,144.76,3.4536]
[1728120445876,11.9092,144.81,144.76,3.4536]
[1728120446377,3.4529,144.8,144.76,3.4536]
[1728120446580,11.9092,144.81,144.75,10.61]
[1728120446776,15.3619,144.81,144.75,10.61]
[1728120447179,10.61,144.8,144.75,10.61]
[1728120447980,3.4531,144.79,144.76,3.4536]
[1728120450071,14.0637,144.77,144.75,4.86]
[1728120450273,10.61,144.76,144.71,0.12502]
[1728120450494,10.61,144.73,144.71,0.12502]
[1728120452984,10.61,144.72,144.71,0.12502]
[1728120453994,14.0647,144.72,144.71,0.12502]
[1728120455693,10.61,144.72,144.65,0.12502]
[1728120455893,10.61,144.69,144.65,0.12502]
[1728120456388,10.61,144.69,144.66,3.456]
[1728120458690,3.47513812,144.73,144.65,10.73502]
[1728120458885,8.40510974,144.83,144.72,10.61]
[1728120459090,10.61,144.79,144.73,10.61]
[1728120459292,10.61,144.76,144.74,3.454]
[1728120459494,10.61,144.76,144.72,4.86]
[1728120459997,10.61,144.76,144.74,3.454]
[1728120461997,3.4533,144.78,144.74,3.454]
[1728120461998,14.0633,144.78,144.74,3.454]
[1728120464304,10.61,144.78,144.73,10.61]
[1728120464495,10.61,144.78,144.75,3.4539]
[1728120465205,10.61,144.78,144.76,3.4538]
[1728120466089,10.61,144.78,144.72,4.86]
[1728120466293,14.18862,144.77,144.72,4.86]
[1728120467099,10.73502,144.77,144.72,4.86]
[1728120467309,10.73502,144.77,144.74,3.4542]
[1728120467993,10.73502,144.77,144.72,4.86]
[1728120468404,10.73502,144.77,144.72,15.47]
[1728120469499,10.73502,144.77,144.75,3.454]
[1728120471507,0.12502,144.77,144.75,3.454]
[1728120472606,10.61,144.76,144.73,3.4544]
[1728120473609,10.61,144.76,144.74,3.4542]
[1728120474215,0.12502,144.77,144.75,3.454]
[1728120475712,10.73502,144.77,144.75,3.454]
[1728120476413,10.73502,144.77,144.75,3.4538]
[1728120476711,10.73502,144.77,144.73,10.61]
[1728120477113,10.73502,144.77,144.75,3.4538]
[1728120478811,10.73502,144.77,144.76,3.4538]
[1728120482617,0.12502,144.77,144.76,3.4538]
[1728120483021,14.18862,144.77,144.74,3.4541]
[1728120483208,10.61,144.76,144.74,3.4541]
[1728120485021,10.73502,144.77,144.74,3.4541]
[1728120486315,10.61,144.76,144.72,4.9]
[1728120486610,10.61,144.76,144.71,15.51]
[1728120487214,3.4541,144.75,144.72,3.4545]
[1728120487419,10.61,144.75,144.71,15.51]
[1728120488523,14.0641,144.75,144.71,18.9647]
[1728120489525,14.0641,144.75,144.71,3.4547]
[1728120489526,14.14325046,144.75,144.71,3.4547]
[1728120489724,3.4543,144.74,144.71,3.4547]
[1728120490818,10.61,144.75,144.7,15.51]
[1728120491023,14.0639,144.76,144.73,3.4544]
[1728120491525,10.61,144.76,144.73,3.4544]
[1728120492525,10.61,144.76,144.74,3.4542]
[1728120493523,12.09182,144.77,144.73,3.4544]
[1728120493729,12.09182,144.77,144.72,10.61]
[1728120494629,15.54542,144.77,144.74,3.4541]
[1728120496631,10.61,144.75,144.73,3.4544]
[1728120497231,10.61,144.74,144.7,1.3412]
[1728120497536,3.52140883,144.75,144.7,4.9]
[1728120497537,10.61,144.73,144.7,4.9]
[1728120497930,14.0645,144.73,144.7,8.355]
[1728120498234,3.52140883,144.75,144.7,8.355]
[1728120498531,10.61,144.73,144.7,8.355]
[1728120499334,10.61,144.73,144.71,3.4549]
[1728120502135,10.61,144.73,144.7,4.9]
[1728120502336,14.0645,144.73,144.7,8.3551]
[1728120503137,14.0645,144.73,144.7,3.4551]
[1728120504739,10.61,144.73,144.7,3.4551]